bitfinex/quotes_ETHUSD_20250222
["timestamp","ask_amount","ask_price","bid_price","bid_amount"]
[1740243586303,0.0176,2779.7,2779.6,0.10030813]
[1740243586503,0.0176,2779.7,2779.3,0.77]
[1740243586703,0.0176,2779.7,2779.6,0.10018394]
[1740243587019,0.0176,2779.7,2779.3,4.36794]
[1740243587202,0.0176,2779.7,2779.6,0.10018394]
[1740243587397,0.0176,2779.7,2779.4,3.59788]
[1740243587615,0.0176,2779.7,2779.6,0.10022777]
[1740243588103,0.0176,2779.7,2779.6,3.59763]
[1740243588298,0.0176,2779.7,2779.6,3.69785777]
[1740243588531,0.0176,2779.7,2779.6,4.42741655]
[1740243590433,3.61511,2779.7,2779.6,0.10022777]
[1740243590636,0.0176,2779.7,2779.6,0.10022777]
[1740243590814,3.61513,2779.7,2779.3,4.36796]
[1740243591013,3.61513,2779.7,2779.6,0.10022777]
[1740243591239,3.59765,2779.6,2779.3,0.77]
[1740243591409,3.59765,2779.6,2779.3,1.206821]
[1740243591806,3.61513,2779.7,2779.3,1.206821]
[1740243592001,0.0176,2779.7,2779.3,1.206821]
[1740243592228,0.0176,2779.7,2779.4,3.59787]
[1740243593610,0.0176,2779.7,2779.5,3.59776]
[1740243595845,3.56486,2779.9,2779.5,3.59776]
[1740243596548,3.56486,2779.9,2779.3,4.36801]
[1740243596724,3.59766,2779.6,2779.3,0.77]
[1740243596925,3.59766,2779.6,2779.2,3.59815]
[1740243597844,3.59796,2779.4,2779.1,0.8014]
[1740243598012,3.5978,2779.5,2779.0,5.39]
[1740243598219,3.59825,2779.2,2779.0,5.39]
[1740243598547,3.5983,2779.1,2778.7,0.8014]
[1740243598848,0.8009,2779.3,2778.7,0.8014]
[1740243599050,0.8009,2779.3,2778.8,7.19714]
[1740243599346,3.59822,2779.2,2778.7,0.8014]
[1740243599547,3.59822,2779.2,2778.7,4.40017]
[1740243599735,3.59833,2779.1,2778.7,0.8014]
[1740243600246,0.8009,2779.3,2778.9,3.59844]
[1740243600545,4.3986,2779.6,2779.1,3.59821]
[1740243600748,4.3986,2779.6,2779.2,3.59814]
[1740243600945,6.0409,2779.8,2779.4,3.59783]
[1740243601146,6.0409,2779.8,2779.1,0.8014]
[1740243601147,3.59725,2779.9,2779.1,0.8014]
[1740243601347,3.59823,2779.2,2778.9,0.8014]
[1740243601645,3.59842,2779.0,2778.7,0.8014]
[1740243601957,3.59824,2779.2,2778.7,0.8014]
[1740243602248,3.59837,2779.1,2778.7,0.8014]
[1740243602557,3.59824,2779.2,2778.8,0.440024]
[1740243602718,3.59843,2779.0,2778.8,0.440024]
[1740243603251,3.59843,2779.0,2778.7,0.8014]
[1740243603555,0.8009,2779.3,2778.7,0.8014]
[1740243603855,5.24,2779.8,2779.5,3.59769]
[1740243604052,4.39806,2780.0,2779.5,3.59769]
[1740243604257,3.59756,2779.7,2779.4,0.8014]
[1740243604462,3.59768,2779.6,2779.2,0.8014]
[1740243604756,3.59768,2779.6,2779.2,1.241358]
[1740243604956,3.59746,2779.8,2779.3,3.59802]
[1740243605157,3.59758,2779.7,2779.2,1.241358]
[1740243605456,3.59746,2779.8,2779.3,3.59802]
[1740243605652,7.19494,2779.8,2779.3,3.59802]
[1740243605857,3.59746,2779.8,2779.3,3.59802]
[1740243606278,0.8009,2780.0,2779.3,0.8437558]
[1740243606433,0.8009,2780.0,2779.5,7.19534]
[1740243606641,0.8009,2780.0,2779.5,7.19535]
[1740243606837,4.39802,2780.0,2779.5,3.59766]
[1740243607025,4.39802,2780.0,2779.3,3.59796]
[1740243607338,3.59731,2779.9,2779.4,3.59789]
[1740243607527,3.59731,2779.9,2779.5,0.719583]
[1740243608953,3.59731,2779.9,2779.5,4.317343]
[1740243609127,6.0619,2780.2,2779.6,0.7736]
[1740243609459,3.59609,2780.8,2780.0,3.59703]
[1740243609669,3.59636,2780.6,2780.0,7.19406]
[1740243609964,3.59636,2780.6,2780.1,3.59698]
[1740243610476,3.59623,2780.7,2780.1,3.59692]
[1740243610674,3.59623,2780.7,2780.0,3.59703]
[1740243610675,3.59604,2780.9,2780.2,4.35308]
[1740243610876,0.8219,2781.0,2780.2,4.35313]
[1740243611059,3.59601,2780.9,2780.4,3.5966]
[1740243611378,4.41783,2781.0,2780.2,0.7563]
[1740243611379,3.59661,2780.4,2780.2,0.7563]
[1740243611679,3.59649,2780.5,2780.2,0.7563]
[1740243612941,4.41776,2781.0,2780.2,0.7563]
[1740243613177,3.59674,2780.3,2779.9,0.7563]
[1740243613384,3.59674,2780.3,2780.0,0.55]
[1740243614449,3.59628,2780.7,2780.0,4.147]
[1740243614649,3.59658,2780.5,2780.0,0.55]
[1740243614846,3.59658,2780.5,2780.0,4.14711]
[1740243615088,7.19316,2780.5,2780.0,4.14711]
[1740243615271,3.59658,2780.5,2780.0,5.44659091]
[1740243615579,3.59654,2780.5,2780.0,5.44659091]
[1740243615772,3.59674,2780.3,2780.0,1.84948091]
[1740243616355,7.19357,2780.3,2780.0,1.84948091]
[1740243616555,3.59687,2780.2,2780.0,1.84948091]
[1740243616785,3.59663,2780.4,2779.6,6.1463]
[1740243617088,3.59751,2779.7,2779.6,5.39]
[1740243617975,4.35886,2779.9,2779.6,5.39]
[1740243618175,3.59712,2780.0,2779.6,5.39]
[1740243618594,3.59676,2780.3,2779.8,3.5973]
[1740243618759,4.35821,2780.4,2779.9,0.7563]
[1740243618962,3.59686,2780.2,2779.9,0.7563]
[1740243619257,7.9549,2780.4,2779.9,4.35352]
[1740243619477,3.0,2780.5,2779.9,0.7563]
[1740243619681,5.50446231,2781.1,2780.2,3.59675]
[1740243619991,7.19239,2780.8,2780.3,0.7563]
[1740243620168,3.59598,2780.9,2780.4,3.59659]
[1740243620859,4.35733,2781.1,2780.4,3.59659]
[1740243621060,3.59589,2781.0,2780.5,3.59647]
[1740243621319,3.59597,2780.9,2780.5,0.794936]
[1740243621592,3.59597,2780.9,2780.7,0.70389958]
[1740243623062,7.95315,2781.1,2780.7,0.70389958]
[1740243623373,3.59587,2781.0,2780.7,0.70389958]
[1740243623699,4.35733,2781.1,2780.7,0.70389958]
[1740243623866,0.7616,2781.1,2780.7,0.70389958]
[1740243624066,3.59583,2781.0,2780.7,0.70389958]
[1740243626306,0.7616,2781.1,2780.7,0.70389958]
[1740243626614,3.59582,2781.0,2780.7,0.70389958]
[1740243627710,0.8094,2781.3,2780.7,1.21342114]
[1740243628014,4.40465,2781.5,2781.0,3.59581]
[1740243628396,0.8094,2781.5,2781.0,3.59581]
[1740243628775,4.40459,2781.5,2781.1,0.09754783]
[1740243629407,5.24,2781.8,2781.2,0.8185]
[1740243629674,5.24,2781.8,2780.8,3.32986583]
[1740243629675,3.59518,2781.5,2781.3,0.09717711]
[1740243629877,3.59512,2781.6,2781.3,0.09717711]
[1740243630078,3.5952,2781.5,2781.1,3.59569]
[1740243630310,3.5952,2781.5,2781.4,0.09708662]
[1740243630475,3.5952,2781.5,2780.9,4.87277654]
[1740243630678,3.59518,2781.5,2781.4,0.09708662]
[1740243630877,3.5956,2781.2,2780.9,0.8185]
[1740243631304,3.5956,2781.2,2781.0,0.09652152]
[1740243631478,3.59569,2781.1,2781.0,0.09652152]
[1740243631917,3.59569,2781.1,2780.6,0.8063]
[1740243632207,3.59539,2781.4,2781.0,0.09638289]
[1740243632408,3.59557,2781.2,2780.7,0.44027]
[1740243632609,3.59557,2781.2,2781.1,0.09629239]
[1740243632814,3.59557,2781.2,2780.7,4.03648]
[1740243633228,3.59557,2781.2,2781.1,0.71048327]
[1740243633435,3.59557,2781.2,2781.1,0.80677566]
[1740243634181,4.37517,2781.2,2781.1,0.80677566]
[1740243634481,3.59647,2780.5,2780.1,0.8063]
[1740243634917,3.59647,2780.5,2780.2,0.09727496]
[1740243635416,3.59629,2780.7,2780.2,0.09727496]
[1740243636185,3.59629,2780.7,2780.3,0.4500445]
[1740243636586,3.59603,2780.9,2780.4,3.69366386]
[1740243636896,3.59588,2781.0,2780.5,3.59644]
[1740243637099,3.59597,2780.9,2780.4,3.69367386]
[1740243637299,3.59575,2781.1,2780.6,4.49974551]
[1740243637611,3.59575,2781.1,2780.6,4.40257]
[1740243637818,3.59575,2781.1,2780.7,0.09708498]
[1740243638821,4.64567425,2781.3,2780.7,3.69327498]
[1740243638822,3.86607425,2781.3,2780.7,3.69327498]
[1740243638985,7.1915,2781.1,2780.7,0.09708498]
[1740243639187,3.5957,2781.1,2780.7,0.09708498]
[1740243639604,3.59561,2781.2,2780.7,3.69328498]
[1740243639798,3.59561,2781.2,2780.7,4.58384694]
[1740243640006,3.59552,2781.3,2780.8,3.59607]
[1740243640218,3.59552,2781.3,2780.9,0.09690395]
[1740243640888,3.59551,2781.3,2780.9,0.09690395]
[1740243641098,3.59557,2781.2,2780.9,0.09690395]
[1740243641299,3.59573,2781.1,2780.9,0.09690395]
[1740243641506,3.59582,2781.0,2780.7,0.89056196]
[1740243641825,3.5957,2781.1,2780.6,0.8063]
[1740243642029,3.59599,2780.9,2780.6,0.8063]
[1740243642195,3.5961,2780.8,2780.6,0.8063]
[1740243642522,3.59599,2780.9,2780.4,6.1963]
[1740243642689,3.59599,2780.9,2780.4,9.7929]
[1740243642886,3.59599,2780.9,2780.5,1.38395945]
[1740243643597,3.59599,2780.9,2780.6,0.09735794]
[1740243643802,3.59611,2780.8,2780.6,0.09735794]
[1740243644104,3.59599,2780.9,2780.6,0.09735794]
[1740243644897,7.19205,2780.9,2780.6,0.09735794]
[1740243645228,3.59609,2780.8,2780.6,1.22477768]
[1740243645523,3.59599,2780.9,2780.6,1.22477768]
[1740243645733,3.59603,2780.9,2780.6,1.22477768]
[1740243646834,3.59575,2781.1,2780.6,1.22477768]
[1740243647022,3.59583,2781.0,2780.6,0.09735794]
[1740243648702,3.5957,2781.1,2780.6,0.09735794]
[1740243648886,3.5957,2781.1,2780.6,3.69363794]
[1740243649086,7.19151,2781.1,2780.6,3.69363794]
[1740243649315,3.5957,2781.1,2780.6,0.54735173]
[1740243649513,3.59583,2781.0,2780.6,4.14367173]
[1740243649716,3.59563,2781.2,2780.7,0.7754]
[1740243650093,3.59563,2781.2,2780.8,0.09717689]
[1740243650602,3.59563,2781.2,2780.9,0.09708638]
[1740243650789,7.19127,2781.2,2780.7,4.37158]
[1740243650990,3.59573,2781.1,2780.8,0.09717689]
[1740243651190,3.59573,2781.1,2780.7,1.61720338]
[1740243651429,3.59592,2781.0,2780.8,0.09717689]
[1740243651629,3.59592,2781.0,2780.7,0.7754]
[1740243651826,3.59592,2781.0,2780.8,0.09717689]
[1740243651996,7.19184,2781.0,2780.7,0.7754]
[1740243652192,3.59604,2780.9,2780.8,0.09717689]
[1740243652523,3.59604,2780.9,2780.7,0.7754]
[1740243652833,3.59595,2780.9,2780.8,0.09717689]
[1740243653126,3.59592,2781.0,2780.5,0.7573]
[1740243653127,3.59611,2780.8,2780.5,0.7573]
[1740243653333,3.59611,2780.8,2780.5,1.23770645]
[1740243653516,3.59628,2780.7,2780.5,1.23770645]
[1740243653717,3.59596,2780.9,2780.5,0.7573]
[1740243656149,3.59612,2780.8,2780.5,0.7573]
[1740243657301,3.59631,2780.7,2780.2,5.39]
[1740243657520,3.59666,2780.4,2780.2,5.39]
[1740243657729,3.59681,2780.3,2779.8,8.98734]
[1740243657906,7.19365,2780.3,2779.9,0.7686]
[1740243658111,3.59686,2780.2,2779.9,0.7686]
[1740243658436,3.59681,2780.3,2779.9,0.7686]
[1740243658636,3.5966,2780.4,2780.1,0.09784714]
[1740243658879,3.59673,2780.3,2779.6,7.348]
[1740243659141,3.59735,2779.9,2779.6,7.348]
[1740243659602,3.59762,2779.7,2779.3,0.7686]
[1740243660050,3.59783,2779.5,2779.0,0.7686]
[1740243660245,3.59783,2779.5,2779.1,0.436703]
[1740243660539,3.0,2779.9,2779.1,0.436703]
[1740243660700,3.0,2779.9,2779.0,0.7686]
[1740243660701,3.59775,2779.6,2779.0,4.36701]
[1740243660901,3.59744,2779.8,2779.1,3.59826]
[1740243661205,3.59752,2779.7,2779.2,3.59815]
[1740243661603,3.59752,2779.7,2779.1,3.59826]
[1740243661830,3.59752,2779.7,2779.1,3.59821]
[1740243662015,3.59744,2779.8,2779.1,3.59821]
[1740243662232,3.59765,2779.6,2779.1,3.59821]
[1740243662403,3.59765,2779.6,2779.1,4.394737]
[1740243662843,3.59738,2779.8,2779.0,0.7686]
[1740243663149,3.5983,2779.1,2778.8,1.51938357]
[1740243663726,3.59848,2779.0,2778.8,0.73258357]
[1740243663925,3.59854,2778.9,2778.8,0.73258357]
[1740243664156,3.59876,2778.8,2778.3,0.7868]
[1740243664337,3.59854,2778.9,2778.3,6.458406]
[1740243664540,3.59885,2778.7,2778.3,2.859166]
[1740243664938,3.59779,2779.5,2778.2,7.348]
[1740243664939,3.59916,2778.5,2778.2,7.348]
[1740243665459,3.59911,2778.5,2778.2,7.348]
[1740243665659,3.59924,2778.4,2778.2,7.348]
[1740243665861,3.59932,2778.3,2778.2,7.348]
[1740243666062,4.08016583,2778.5,2777.6,0.7521]
[1740243666243,4.08016583,2778.5,2777.4,4.35252]
[1740243666244,3.59965,2778.1,2777.4,4.35252]
[1740243666438,3.59986,2777.9,2777.4,4.35252]
[1740243666766,3.59976,2778.0,2777.4,7.95286]
[1740243666969,12.91926583,2778.5,2777.6,3.6002]
[1740243666970,3.59939,2778.3,2777.6,3.6002]
[1740243667169,3.59945,2778.2,2777.6,3.60013]
[1740243667333,3.59965,2778.1,2777.6,4.035353]
[1740243667735,3.59946,2778.2,2777.6,4.035353]
[1740243667977,9.32016583,2778.5,2778.0,3.59971]
[1740243667978,6.25628198,2778.5,2778.0,3.59971]
[1740243668137,8.83887,2778.7,2778.1,3.59951]
[1740243668336,8.83887,2778.7,2778.2,3.59943]
[1740243668631,5.24,2778.7,2778.0,0.7521]
[1740243668838,5.24,2778.7,2778.3,3.59929]
[1740243669066,5.24,2778.7,2778.3,3.54925]
[1740243669564,8.83887,2778.7,2778.1,3.59951]
[1740243669767,8.83887,2778.7,2778.0,0.7521]
[1740243669960,3.59933,2778.3,2778.0,0.7521]
[1740243670358,8.83885,2778.7,2778.0,0.7521]
[1740243670568,3.59958,2778.1,2777.7,0.7503]
[1740243671268,7.19924,2778.1,2777.7,0.7503]
[1740243671467,7.19924,2778.1,2777.4,4.15048]
[1740243671468,0.8242,2778.1,2777.4,0.7503]
[1740243671666,3.59945,2778.2,2777.4,4.3507]
[1740243671974,3.59945,2778.2,2777.6,7.20038]
[1740243672175,4.42362,2778.3,2777.7,3.60002]
[1740243672334,0.8242,2778.3,2777.4,4.3507]
[1740243672672,3.59991,2777.9,2777.4,4.3507]
[1740243673263,3.59991,2777.9,2777.4,7.95112]
[1740243673474,3.59966,2778.1,2777.5,3.60035]
[1740243673676,7.641716,2778.1,2777.6,0.10296176]
[1740243674004,0.442386,2778.1,2777.6,3.70317176]
[1740243674375,4.041966,2778.1,2777.6,3.70317176]
[1740243674594,0.442386,2778.1,2777.7,3.60009]
[1740243674962,0.442386,2778.1,2777.8,0.10278031]
[1740243675164,0.442386,2778.1,2777.8,3.70274031]
[1740243675361,0.442386,2778.1,2777.8,3.59996]
[1740243675684,4.041976,2778.1,2777.9,0.1026896]
[1740243676000,0.442386,2778.1,2777.9,0.1026896]
[1740243676181,3.59962,2778.1,2777.6,3.60022]
[1740243676347,3.59962,2778.1,2778.0,0.1025989]
[1740243676881,3.59962,2778.1,2777.6,3.60022]
[1740243677048,0.8242,2778.3,2777.6,3.60022]
[1740243677049,4.42364,2778.3,2778.0,0.1033664]
[1740243677249,3.59952,2778.2,2777.6,3.60014]
[1740243677478,3.59952,2778.2,2777.7,3.70370853]
[1740243677683,3.59959,2778.1,2777.7,0.10363853]
[1740243678194,3.59952,2778.2,2777.7,3.70364853]
[1740243678399,3.59977,2778.0,2777.7,0.10363853]
[1740243678550,7.19959,2778.0,2777.7,0.10363853]
[1740243678744,3.59977,2778.0,2777.5,3.60032]
[1740243678962,3.59977,2778.0,2777.4,0.7503]
[1740243678963,3.59977,2778.0,2777.8,0.10386221]
[1740243679184,3.59977,2778.0,2777.5,3.60028]
[1740243679389,3.59977,2778.0,2777.9,0.1037715]
[1740243679584,3.59977,2778.0,2777.5,3.60028]
[1740243679746,4.041882,2778.2,2777.9,0.1037715]
[1740243679946,3.59953,2778.2,2777.7,3.60008]
[1740243680194,3.59953,2778.2,2778.0,0.10368079]
[1740243680494,3.59928,2778.4,2778.1,0.10359009]
[1740243680495,3.59921,2778.4,2778.1,0.10359009]
[1740243680659,5.24,2778.5,2778.3,3.59925]
[1740243680869,5.24,2778.5,2778.4,3.70250804]
[1740243681064,0.8242,2779.1,2778.5,3.59906]
[1740243681266,0.8242,2779.1,2778.6,3.70201477]
[1740243681474,5.514381,2779.2,2778.6,3.70201477]
[1740243681475,5.24,2779.2,2778.7,4.349]
[1740243681696,5.24,2779.2,2778.8,0.10293345]
[1740243682315,8.83819,2779.2,2778.9,0.10284281]
[1740243682721,3.59835,2779.1,2778.7,0.7503]
[1740243682923,3.59835,2779.1,2779.0,0.10275217]
[1740243683083,3.59835,2779.1,2778.7,0.7503]
[1740243683273,3.59867,2778.8,2778.4,0.7503]
[1740243683620,4.42275,2778.9,2778.4,0.7503]
[1740243683964,3.59889,2778.7,2778.4,0.7503]
[1740243684165,4.42274,2778.9,2778.0,0.7503]
[1740243684497,3.59875,2778.8,2778.3,3.5993]
[1740243684703,0.8242,2778.9,2778.0,4.99141]
[1740243684903,4.42255,2779.1,2778.6,3.59891]
[1740243685334,4.42248,2779.1,2778.6,3.59891]
[1740243685538,3.59828,2779.1,2778.6,3.59891]
[1740243686332,3.59828,2779.1,2778.6,3.59886]
[1740243686907,3.59828,2779.1,2778.6,7.1977]
[1740243687231,3.59828,2779.1,2778.6,3.59884]
[1740243687428,8.83817,2779.2,2778.6,3.59884]
[1740243687636,5.24,2779.2,2778.7,3.59869]
[1740243688419,5.24,2779.2,2778.5,0.7503]
[1740243688618,6.07,2779.6,2779.2,3.59815]
[1740243688923,9.66771,2779.6,2779.3,0.10210011]
[1740243689438,9.66771,2779.6,2778.6,0.8178]
[1740243689439,3.59796,2779.4,2778.8,3.59859]
[1740243689639,6.07,2779.6,2778.6,0.8178]
[1740243689944,3.59829,2779.1,2778.6,4.41663]
[1740243690123,3.59829,2779.1,2778.7,0.10192756]
[1740243690837,7.19621,2779.3,2778.7,3.70072756]
[1740243691137,3.59806,2779.3,2778.8,3.59866]
[1740243691317,6.34476944,2779.6,2778.8,3.59858]
[1740243691640,6.34476944,2779.6,2779.0,3.5984]
[1740243692015,3.59779,2779.5,2779.1,0.10156499]
[1740243692335,3.5979,2779.4,2779.1,0.10156499]
[1740243692532,0.83,2779.6,2779.2,3.59806]
[1740243692828,1.27276,2779.6,2779.1,4.51364499]
[1740243693037,4.87048,2779.6,2779.3,0.10138374]
[1740243693240,3.59777,2779.5,2779.2,0.10147436]
[1740243693438,3.59777,2779.5,2779.1,0.8138]
[1740243693604,3.59777,2779.5,2779.3,0.10138374]
[1740243693805,3.59777,2779.5,2779.2,0.10147436]
[1740243694045,3.59777,2779.5,2779.4,0.10129313]
[1740243694217,3.59777,2779.5,2779.3,0.10138374]
[1740243694541,4.8704,2779.6,2779.1,4.41207]
[1740243694831,0.83,2779.6,2779.3,0.71575062]
[1740243695035,0.83,2779.6,2779.3,4.31365062]
[1740243695335,0.818,2779.9,2779.4,0.10129313]
[1740243695541,0.818,2780.2,2779.7,3.59751]
[1740243695842,4.41493,2780.2,2779.6,4.41142]
[1740243696043,0.818,2780.2,2779.8,0.10062383]
[1740243696191,3.818,2780.2,2779.8,3.59732]
[1740243696583,0.818,2780.2,2779.9,0.10053325]
[1740243696708,3.59712,2780.0,2779.9,0.10053325]
[1740243696908,3.59712,2780.0,2779.8,0.7323306]
[1740243697104,3.59712,2780.0,2779.9,0.10053325]
[1740243697809,4.41512,2780.0,2779.9,0.10053325]
[1740243698106,0.818,2780.0,2779.1,4.41201]
[1740243698311,3.59725,2779.9,2779.3,3.59801]
[1740243698497,3.59746,2779.8,2779.2,0.10087523]
[1740243698692,3.59746,2779.8,2779.4,0.100694]
[1740243698908,3.5976,2779.7,2779.3,0.10078461]
[1740243699142,9.65521,2780.0,2779.5,0.1006034]
[1740243699296,9.65521,2780.0,2779.4,3.698584]
[1740243699637,3.59751,2779.7,2779.6,0.10051279]
[1740243699839,3.59757,2779.7,2779.5,0.1006034]
[1740243699997,3.59757,2779.7,2779.6,0.10051279]
[1740243700404,3.59772,2779.6,2779.1,0.8138]
[1740243700610,3.59783,2779.5,2779.1,0.8138]
[1740243700827,3.59783,2779.5,2779.1,4.41208]
[1740243701641,3.59747,2779.8,2778.6,6.1726]
[1740243701642,3.5981,2779.3,2778.6,6.1726]
[1740243701842,0.8079,2779.4,2778.9,3.59843]
[1740243702001,0.8079,2779.4,2778.9,7.19691]
[1740243702202,3.59802,2779.3,2778.6,0.7826]
[1740243702397,0.8079,2779.4,2778.8,3.59855]
[1740243702603,4.4058,2779.4,2778.9,3.59842]
[1740243702847,3.5983,2779.1,2778.6,4.38147]
[1740243703149,3.5983,2779.1,2778.4,3.5991]
[1740243703150,3.59874,2778.8,2778.3,4.38189]
[1740243703451,0.8079,2778.9,2778.1,13.72676018]
[1740243703452,3.5988,2778.7,2778.1,7.353]
[1740243703801,0.8079,2778.9,2778.2,0.10151137]
[1740243703802,3.59867,2778.8,2778.2,0.10151137]
[1740243704042,3.59928,2778.4,2778.2,0.10151137]
[1740243704243,3.59969,2778.1,2777.6,0.72770781]
[1740243704443,3.6001,2777.7,2777.6,0.72770781]
[1740243704600,4.408,2777.7,2777.6,0.72770781]
[1740243704805,4.408,2777.7,2777.0,3.6009]
[1740243704806,0.8079,2777.7,2776.8,3.0]
[1740243705111,0.8079,2777.7,2776.7,8.1396]
[1740243705294,4.40809,2777.7,2776.8,0.81396]
[1740243705503,4.40809,2777.7,2777.1,3.6008]
[1740243705729,0.8079,2777.7,2776.8,0.81396]
[1740243706003,0.8079,2777.7,2777.2,3.60064]
[1740243706344,0.8085,2778.0,2777.5,3.60033]
[1740243706544,0.8085,2778.0,2777.4,3.60048]
[1740243706701,0.8085,2778.0,2777.3,0.7966]
[1740243706702,5.24,2778.1,2777.3,0.7966]
[1740243706897,0.8085,2778.5,2778.2,3.59934]
[1740243707153,5.24,2778.8,2778.4,3.59919]
[1740243707330,6.0485,2778.8,2778.2,3.59934]
[1740243707497,3.59906,2778.6,2778.0,4.39623]
[1740243707902,3.59906,2778.6,2778.1,3.5995]
[1740243708215,6.0485,2778.8,2778.5,3.59906]
[1740243708413,6.0485,2778.8,2778.0,0.7966]
[1740243708414,0.27436352,2778.8,2778.7,3.5988]
[1740243708613,0.27436352,2778.8,2778.0,0.7966]
[1740243709166,0.27436352,2778.8,2778.4,3.59913]
[1740243709302,3.59856,2778.9,2778.4,3.59913]
[1740243709503,3.59841,2779.0,2778.4,3.59913]
[1740243709842,3.59841,2779.0,2778.2,3.59939]
[1740243710042,3.59864,2778.9,2778.3,3.59928]
[1740243710230,0.8085,2779.1,2778.0,0.7966]
[1740243710539,4.40689,2779.1,2778.4,3.59908]
[1740243710717,4.40689,2779.1,2778.5,3.59904]
[1740243711545,4.40689,2779.1,2778.6,3.59893]
[1740243711945,3.59843,2779.0,2778.4,3.59908]
[1740243712156,3.59843,2779.0,2778.4,3.59907]
[1740243712319,8.00526,2779.1,2778.5,3.59903]
[1740243712642,8.00522,2779.1,2778.5,3.59903]
[1740243712830,3.59842,2779.0,2778.5,3.59903]
[1740243713356,3.59857,2778.9,2778.3,3.59924]
[1740243713558,3.59857,2778.9,2778.4,3.59916]
[1740243713746,3.59857,2778.9,2778.4,7.19828]
[1740243714057,7.19722,2778.9,2778.4,3.59912]
[1740243714368,3.59867,2778.8,2778.3,4.31915]
[1740243714814,3.59844,2779.0,2778.3,0.71986]
[1740243715016,0.8085,2779.1,2778.4,0.431918]
[1740243715232,0.8085,2779.1,2778.7,3.5988]
[1740243715447,3.59845,2779.0,2778.4,3.5991]
[1740243715653,3.59845,2779.0,2778.4,7.19821]
[1740243716023,3.59845,2779.0,2778.4,3.5991]
[1740243716270,4.40678,2779.1,2778.1,3.59958]
[1740243716473,4.40678,2779.1,2778.5,3.59899]
[1740243716772,4.40678,2779.1,2778.5,7.19799]
[1740243717341,4.40678,2779.1,2778.5,3.59898]
[1740243717541,4.40678,2779.1,2778.6,3.59891]
[1740243717741,4.40678,2779.1,2778.6,7.19776]
[1740243717956,0.8085,2779.1,2778.7,3.5988]
[1740243718159,8.83767,2779.6,2778.6,5.097376]
[1740243718160,8.83768,2779.6,2778.6,5.097376]
[1740243718339,0.8136,2779.7,2779.4,3.59789]
[1740243718540,0.8136,2779.7,2779.4,3.5978]
[1740243718745,0.8136,2779.7,2779.5,0.10134868]
[1740243719200,4.41113,2779.7,2779.5,0.10134868]
[1740243719357,4.41113,2779.7,2779.2,7.19615]
[1740243719358,0.8136,2779.7,2779.0,3.59832]
[1740243719677,7.19545,2779.6,2779.0,3.59832]
[1740243719843,3.59771,2779.6,2779.0,7.19667]
[1740243720038,3.59771,2779.6,2779.0,3.59832]
[1740243720245,3.59771,2779.6,2779.0,7.19664]
[1740243720556,3.59771,2779.6,2779.1,3.59828]
[1740243721073,0.8136,2779.7,2779.1,3.59828]
[1740243721074,0.8136,2779.7,2779.3,3.59802]
[1740243721274,5.24,2779.9,2778.7,8.98875]
[1740243721275,5.24,2779.9,2779.6,3.59763]
[1740243721683,5.24,2779.9,2779.5,3.59776]
[1740243722049,5.24,2779.9,2779.4,3.59789]
[1740243722249,8.83727,2779.9,2779.4,3.59789]
[1740243723264,8.83727,2779.9,2779.5,3.59776]
[1740243723783,5.24,2779.9,2779.5,3.59776]
[1740243724579,8.83726,2779.9,2779.5,3.59776]
[1740243725249,3.59751,2779.7,2779.2,1.55947212]
[1740243725464,3.59779,2779.5,2779.2,0.73207212]
[1740243725838,4.39169,2779.5,2779.2,0.73207212]
[1740243726886,3.59802,2779.3,2779.2,0.73207212]
[1740243727066,0.7939,2779.5,2778.9,3.59853]
[1740243727067,3.59792,2779.4,2778.9,3.59853]
[1740243727382,0.7939,2779.8,2779.3,3.59799]
[1740243727872,4.39129,2779.8,2779.3,3.59796]
[1740243728038,3.59765,2779.6,2779.1,3.59819]
[1740243728781,3.59751,2779.7,2779.2,3.59808]
[1740243729182,4.39137,2779.8,2779.2,3.59808]
[1740243729382,3.59751,2779.7,2779.2,3.59808]
[1740243729684,0.7939,2779.8,2779.4,3.59779]
[1740243729887,0.7939,2779.8,2779.3,0.7778]
[1740243730068,0.7939,2780.1,2779.7,3.5974]
[1740243730272,0.7939,2780.1,2779.8,3.59736]
[1740243730587,0.7939,2780.1,2780.0,3.59712]
[1740243730744,0.8128,2780.4,2780.2,3.59686]
[1740243730945,0.8128,2780.8,2780.4,3.59647]
[1740243731592,0.8128,2780.8,2780.4,7.193]
[1740243731882,0.8128,2780.8,2780.6,3.59633]
[1740243732286,0.8128,2781.2,2780.6,3.59633]
[1740243732488,4.40838,2781.2,2780.6,7.19259]
[1740243732643,4.40838,2781.2,2780.6,3.59626]
[1740243732845,0.8128,2781.2,2780.5,0.7666]
[1740243733046,4.40838,2781.2,2780.5,4.36303]
[1740243733344,3.59539,2781.4,2780.8,3.596]
[1740243733548,3.59539,2781.4,2780.5,4.36296]
[1740243733549,3.59571,2781.1,2780.5,4.36296]
[1740243733784,3.59551,2781.3,2780.9,0.09786028]
[1740243734087,3.59551,2781.3,2780.8,0.71865133]
[1740243734290,3.59551,2781.3,2781.0,0.09776977]
[1740243734444,3.59571,2781.1,2780.9,0.09786028]
[1740243734682,0.4849129,2781.3,2780.8,0.71865133]
[1740243734889,4.40806,2781.5,2780.8,0.71865133]
[1740243735089,0.8128,2781.5,2781.0,3.59573]
[1740243735383,4.45481114,2781.8,2781.0,3.59573]
[1740243735384,4.68426662,2781.8,2781.2,3.59549]
[1740243735548,4.68426662,2781.8,2781.3,3.59543]
[1740243735747,8.27913662,2781.8,2781.2,3.59549]